Workbook

Sheet Preparation
B2: HOMME | F2: FEMME
B3: Age | C3: 26 | D3: ans | F3: Age | G3: 1 | H3: ans | K3: (1) Activité physique | M3: Ratio
B4: Taille | C4: 1.88 | D4: m | F4: Taille | G4: 1 | H4: m | K4: Pas d'activité physique et emploi sédentaire | M4: 1.37
B5: Poids | C5: 95 | D5: kg | F5: Poids | G5: 1 | H5: kg | K5: Sport 1 à 2 fois par semaines | M5: 1.55
B6: Activité physique (1) | C6: 1.7 | D6: - | F6: Activité physique (1) | G6: 1 | H6: - | K6: Sport 3 à 4 fois par semaine | M6: 1.7
B7: Taux de masse grasse (2) | C7: 27 | D7: % | F7: Taux de masse grasse (2) | G7: 1 | H7: % | K7: Sport tous les jours | M7: 1.9
B9: Besoin calorique basal | C9: =ROUND((259*((((C5^0.48)*(C4^0.5)*(C3^-0.13)))))*(1-C7/100),0) -> 1510 | D9: cal | F9: Besoin calorique basal | G9: =ROUND((230*((((G5^0.48)*(G4^0.5)*(G3^-0.13)))))*(1-G7/100),0) -> 228 | H9: cal
B10: Besoin calorique quotidien | C10: =ROUND(C9*C6,0) -> 2567 | D10: cal | F10: Besoin calorique quotidien | G10: =ROUND(G9*G6,0) -> 228 | H10: cal
K11: (2) Taux de masse grasse
B12: Retirer quotidiennement : | C12: 550 | D12: cal | F12: Retirer quotidiennement : | G12: 0 | H12: cal
B13: Apport quotidien final : | C13: =C10-C12 -> 2017 | D13: cal | F13: Apport quotidien final : | G13: =G10-G12 -> 228 | H13: cal
B18: Apport quotidien - Paléo Masse | F18: Apport quotidien - Paléo Masse
B19: Protéine | C19: =ROUND($C$5*2,2) -> 190 | D19: g | F19: Protéine | G19: =ROUND($G$5*2,2) -> 2 | H19: g
B20: Lipide | C20: =ROUND((($C$13*50)/100)/9,2) -> 112.06 | D20: g | F20: Lipide | G20: =ROUND((($G$13*50)/100)/9,2) -> 12.67 | H20: g
B21: Glucide | C21: =ROUND(($C$13-($C$19*4+$C$20*9))/4,2) -> 62.12 | D21: g | F21: Glucide | G21: =ROUND(($G$13-($G$19*4+$G$20*9))/4,2) -> 26.49 | H21: g
B23: Apport quotidien - Paléo Sèche | F23: Apport quotidien - Paléo Sèche
B24: Protéine | C24: =ROUND((($C$13*30)/100)/4,2) -> 151.28 | D24: g | F24: Protéine | G24: =ROUND((($G$13*30)/100)/4,2) -> 17.1 | H24: g
B25: Lipide | C25: =ROUND((($C$13*50)/100)/9,2) -> 112.06 | D25: g | F25: Lipide | G25: =ROUND((($G$13*50)/100)/9,2) -> 12.67 | H25: g
B26: Glucide | C26: =ROUND((($C$13*20)/100)/4,2) -> 100.85 | D26: g | F26: Glucide | G26: =ROUND((($G$13*20)/100)/4,2) -> 11.4 | H26: g
B28: Apport quotidien - Paléo Vegan Cru | F28: Apport quotidien - Paléo Vegan Cru
B29: Protéine | C29: =ROUND((($C$5)),2) -> 95 | D29: g | F29: Protéine | G29: =ROUND((($G$5)),2) -> 1 | H29: g
B30: Lipide | C30: =ROUND((($C$13*57)/100)/9,2) -> 127.74 | D30: g | F30: Lipide | G30: =ROUND((($G$13*57)/100)/9,2) -> 14.44 | H30: g
B31: Glucide | C31: =ROUND(($C$13-($C$29*4+$C$30*9))/4,2) -> 121.84 | D31: g | F31: Glucide | G31: =ROUND(($G$13-($G$29*4+$G$30*9))/4,2) -> 23.51 | H31: g
B34: Apport quotidien - Paléo Masse | E34: X
B35: Apport quotidien - Paléo Sèche | E35: V
B36: Apport quotidien - Paléo Vegan Cru | E36: X

Sheet Liste_aliment
A1: Aliment - Marque | B1: Mesure pour | C1: Calories | D1: Protéines | E1: Lipides | F1: Glucides | G1: Pour 1 personne | H1: Notes | I1: Poids à l'unité | O1: Lundi
A2: - | B2: g / cl | C2: g | D2: g | E2: g | F2: g | G2: g / cl | H2: - | I2: - | O2: Mardi
A3: Abricot | B3: 100 | C3: 44 | D3: 1 | E3: 0 | F3: 10 | G3: 60 | I3: 60 | O3: Mercredi
A4: Amandes | B4: 100 | C4: 578 | D4: 19 | E4: 54 | F4: 4 | G4: 25 | I4: 25 | O4: Jeudi
A5: Ananas | B5: 100 | C5: 50 | D5: 0.5 | E5: 0 | F5: 12 | G5: 300 | I5: 300 | O5: Vendredi
A6: Artichaut cuit | B6: 100 | C6: 47 | D6: 3.3 | E6: 0.2 | F6: 11 | G6: 300 | I6: 300 | O6: Samedi
A7: avocat - avocat | B7: 200 | C7: 440 | D7: 4 | E7: 44 | F7: 7 | G7: 200 | I7: 200 | O7: Dimanche
A8: banane - banane | B8: 150 | C8: 141.45 | D8: 1.65 | E8: 0.45 | F8: 32.7 | G8: 150 | I8: 150
A9: Baton de berger justin bridou | B9: 100 | C9: 438 | D9: 27 | E9: 36 | F9: 1 | G9: 50 | I9: 50
A10: brocoli - brocoli | B10: 100 | C10: 25 | D10: 3 | E10: 0.4 | F10: 2.4 | G10: 250 | I10: 250
A11: carrotte - carotte | B11: 100 | C11: 26.3 | D11: 0.8 | E11: 0.3 | F11: 5.1 | G11: 100 | I11: 100
A12: Cerise | B12: 100 | C12: 77 | D12: 1 | E12: 0 | F12: 17 | G12: 8.2 | I12: 8.2
A13: Chocolat noir - Auchant 85% | B13: 100 | C13: 591 | D13: 8 | E13: 51.6 | F13: 16.8 | G13: 20 | I13: 20
A14: chocolat noir - nestle dessert noir 52% | B14: 100 | C14: 549 | D14: 4.9 | E14: 34.7 | F14: 50.6 | G14: 25.6 | I14: 25.6
A15: Chou fleur | B15: 100 | C15: 29 | D15: 2.4 | E15: 0.2 | F15: 4.5 | G15: 1500 | I15: 1500
A16: concombre - concombre | B16: 100 | C16: 11.7 | D16: 0.7 | E16: 0.1 | F16: 2 | G16: 100 | I16: 100
A17: Cote de boeuf | B17: 100 | C17: 257 | D17: 17 | E17: 21 | F17: 0 | G17: 400 | I17: 400
A18: Côte de porc surgele aldi | B18: 100 | C18: 233 | D18: 17.8 | E18: 17.8 | F18: 0.3 | G18: 400 | I18: 400
A19: Courgette | B19: 100 | C19: 33 | D19: 1.3 | E19: 0 | F19: 6.5 | G19: 100 | I19: 100
A20: crabe - baonet crabe carrefour tendre | B20: 100 | C20: 116 | D20: 7.4 | E20: 4.3 | F20: 12 | G20: 100 | I20: 100
A21: Crevettes cuites | B21: 100 | C21: 80 | D21: 18.1 | E21: 0.8 | F21: 0 | G21: 100 | I21: 100
A22: Endive | B22: 100 | C22: 15 | D22: 1 | E22: 0.1 | F22: 2.4 | G22: 100 | I22: 100
A23: Epinard frais | B23: 100 | C23: 19 | D23: 2.7 | E23: 0.3 | F23: 1.3 | G23: 100 | I23: 100
A24: Framboises | B24: 100 | C24: 36 | D24: 1 | E24: 0 | F24: 8 | G24: 10 | I24: 10
A25: Haricot plat coupés d'aucy congelé | B25: 100 | C25: 27 | D25: 1.7 | E25: 0.1 | F25: 4.7 | G25: 250 | I25: 250
A26: haricot vert - haricot vert | B26: 100 | C26: 20.1 | D26: 1.6 | E26: 0.1 | F26: 3.2 | G26: 250 | I26: 250
A27: huile olive - carrefour bio huile dolive vierfe extra | B27: 100 | C27: 822 | D27: 0 | E27: 91 | F27: 0 | G27: 30 | I27: 30
A28: jambon - herta le bon paris a letouffee qual supp | B28: 45 | C28: 47 | D28: 9 | E28: 1.1 | F28: 0.2 | G28: 45 | I28: 45
A29: Lait amande bio bjorg | B29: 100 | C29: 44 | D29: 0.8 | E29: 1.9 | F29: 5.9 | G29: 1000 | I29: 1000
A30: Lait de soja Auchan | B30: 100 | C30: 41 | D30: 3.2 | E30: 1.8 | F30: 2.7 | G30: 1000 | I30: 1000
A31: Melon | B31: 100 | C31: 30 | D31: 1 | E31: 0.2 | F31: 6 | G31: 500 | I31: 500
A32: Moules marinieres surgeles | B32: 100 | C32: 98 | D32: 13.9 | E32: 3.1 | F32: 3.6 | G32: 500 | I32: 500
A33: moutarde - Amora | B33: 100 | C33: 161 | D33: 7.9 | E33: 12 | F33: 4.4 | G33: 30 | I33: 30
A34: oeuf - carrefour bio oeuf de poules | B34: 100 | C34: 142 | D34: 12.6 | E34: 9.9 | F34: 0.8 | G34: 150 | I34: 50
A35: orange jus | B35: 100 | C35: 19.3 | D35: 0.1 | E35: 0.01 | F35: 11 | G35: 33 | I35: 33
A36: Pastèque | B36: 100 | C36: 30 | D36: 0.4 | E36: 0 | F36: 7 | G36: 1000 | I36: 1000
A37: poisson cabillau - poisson cabillau | B37: 100 | C37: 78.7 | D37: 18.1 | E37: 0.7 | F37: 0 | G37: 150 | I37: 150
A38: poisson merlan - poisson merlan | B38: 100 | C38: 79.5 | D38: 18.7 | E38: 0.3 | F38: 0.5 | G38: 150 | I38: 150
A39: poisson saumon - poisson saumon pave | B39: 100 | C39: 179.5 | D39: 20.8 | E39: 10.7 | F39: 0 | G39: 150 | I39: 150
A40: poisson thon - poisson thon | B40: 100 | C40: 118 | D40: 25 | E40: 2 | F40: 0 | G40: 150 | I40: 150
A41: poisson thon boite - petit navire thon entier au naturel | B41: 100 | C41: 109 | D41: 25 | E41: 1 | F41: 0.1 | G41: 56 | I41: 56
A42: Poivron | B42: 100 | C42: 19 | D42: 1 | E42: 0.2 | F42: 3.3 | G42: 40 | I42: 40
A43: pomme - pomme | B43: 140 | C43: 111.16 | D43: 0.56 | E43: 0.28 | F43: 26.6 | G43: 140 | I43: 140
A44: poulet filet - carrefour filet de poulet france | B44: 100 | C44: 94 | D44: 20.7 | E44: 0.9 | F44: 2.2 | G44: 140 | I44: 140
A45: poulet tranche | B45: 40 | C45: 176 | D45: 8 | E45: 0.8 | F45: 0.6 | G45: 160 | I45: 160
A46: Radis | B46: 100 | C46: 18 | D46: 1 | E46: 0.2 | F46: 3 | G46: 10 | I46: 10
A47: Raisin | B47: 100 | C47: 69 | D47: 0.6 | E47: 0.7 | F47: 15 | G47: 150 | I47: 150
A48: Rôti de porc cuit fleuri michon | B48: 100 | C48: 128 | D48: 22 | E48: 4 | F48: 1 | G48: 1000 | I48: 1000
A49: salade - salade | B49: 100 | C49: 17 | D49: 0.9 | E49: 0.1 | F49: 3 | G49: 100 | I49: 100
A50: steak - carrefour bio bavette aloyau boeuf | B50: 100 | C50: 138 | D50: 22 | E50: 5.5 | F50: 0 | G50: 150 | I50: 150
A51: steak haché - carrefour bio steak haché 100% muscle | B51: 100 | C51: 185 | D51: 19 | E51: 12 | F51: 0.2 | G51: 125 | I51: 125
A52: Tomate cerise | B52: 100 | C52: 20 | D52: 0.8 | E52: 0.3 | F52: 3.5 | G52: 10 | I52: 10
A53: vinaigre - carrefour bio vinaigre balsamique de modene | B53: 100 | C53: 95 | D53: 1.2 | E53: 0 | F53: 17.8 | G53: 30 | I53: 30

Sheet Menu
B2: Aliments | C2: Quantité | D2: Protéines | E2: Lipides | F2: Glucides | G2: Calories
B4: MATIN | L4: Vendredi
B5: oeuf - carrefour bio oeuf de poules | C5: 100 | D5: =IF($B5="","",((INDEX(Liste_aliment!$A$3:$G$54,MATCH(Menu!$B5,Liste_Aliments),4))*$C5)/INDEX(Liste_aliment!$A$3:$G$54,MATCH(Menu!$B5,Liste_Aliments),2)) -> 12.6 | E5: =IF($B5="","",((INDEX(Liste_aliment!$A$3:$G$54,MATCH(Menu!$B5,Liste_Aliments),5))*$C5)/INDEX(Liste_aliment!$A$3:$G$54,MATCH(Menu!$B5,Liste_Aliments),2)) -> 9.9 | F5: =IF($B5="","",((INDEX(Liste_aliment!$A$3:$G$54,MATCH(Menu!$B5,Liste_Aliments),6))*$C5)/INDEX(Liste_aliment!$A$3:$G$54,MATCH(Menu!$B5,Liste_Aliments),2)) -> 0.8 | G5: =IF($B5="","",((INDEX(Liste_aliment!$A$3:$G$54,MATCH(Menu!$B5,Liste_Aliments),3))*$C5)/INDEX(Liste_aliment!$A$3:$G$54,MATCH(Menu!$B5,Liste_Aliments),2)) -> 142
B6: orange jus | C6: 300 | D6: =IF($B6="","",((INDEX(Liste_aliment!$A$3:$G$54,MATCH(Menu!$B6,Liste_Aliments),4))*$C6)/INDEX(Liste_aliment!$A$3:$G$54,MATCH(Menu!$B6,Liste_Aliments),2)) -> 0.3 | E6: =IF($B6="","",((INDEX(Liste_aliment!$A$3:$G$54,MATCH(Menu!$B6,Liste_Aliments),5))*$C6)/INDEX(Liste_aliment!$A$3:$G$54,MATCH(Menu!$B6,Liste_Aliments),2)) -> 0.03 | F6: =IF($B6="","",((INDEX(Liste_aliment!$A$3:$G$54,MATCH(Menu!$B6,Liste_Aliments),6))*$C6)/INDEX(Liste_aliment!$A$3:$G$54,MATCH(Menu!$B6,Liste_Aliments),2)) -> 33 | G6: =IF($B6="","",((INDEX(Liste_aliment!$A$3:$G$54,MATCH(Menu!$B6,Liste_Aliments),3))*$C6)/INDEX(Liste_aliment!$A$3:$G$54,MATCH(Menu!$B6,Liste_Aliments),2)) -> 57.9
B7: Amandes | C7: 40 | D7: =IF($B7="","",((INDEX(Liste_aliment!$A$3:$G$54,MATCH(Menu!$B7,Liste_Aliments),4))*$C7)/INDEX(Liste_aliment!$A$3:$G$54,MATCH(Menu!$B7,Liste_Aliments),2)) -> 7.6 | E7: =IF($B7="","",((INDEX(Liste_aliment!$A$3:$G$54,MATCH(Menu!$B7,Liste_Aliments),5))*$C7)/INDEX(Liste_aliment!$A$3:$G$54,MATCH(Menu!$B7,Liste_Aliments),2)) -> 21.6 | F7: =IF($B7="","",((INDEX(Liste_aliment!$A$3:$G$54,MATCH(Menu!$B7,Liste_Aliments),6))*$C7)/INDEX(Liste_aliment!$A$3:$G$54,MATCH(Menu!$B7,Liste_Aliments),2)) -> 1.6 | G7: =IF($B7="","",((INDEX(Liste_aliment!$A$3:$G$54,MATCH(Menu!$B7,Liste_Aliments),3))*$C7)/INDEX(Liste_aliment!$A$3:$G$54,MATCH(Menu!$B7,Liste_Aliments),2)) -> 231.2 | K7: Coeficient Matin | L7: 0.2
D8: =IF($B8="","",((INDEX(Liste_aliment!$A$3:$G$54,MATCH(Menu!$B8,Liste_Aliments),4))*$C8)/INDEX(Liste_aliment!$A$3:$G$54,MATCH(Menu!$B8,Liste_Aliments),2)) ->  | E8: =IF($B8="","",((INDEX(Liste_aliment!$A$3:$G$54,MATCH(Menu!$B8,Liste_Aliments),5))*$C8)/INDEX(Liste_aliment!$A$3:$G$54,MATCH(Menu!$B8,Liste_Aliments),2)) ->  | F8: =IF($B8="","",((INDEX(Liste_aliment!$A$3:$G$54,MATCH(Menu!$B8,Liste_Aliments),6))*$C8)/INDEX(Liste_aliment!$A$3:$G$54,MATCH(Menu!$B8,Liste_Aliments),2)) ->  | G8: =IF($B8="","",((INDEX(Liste_aliment!$A$3:$G$54,MATCH(Menu!$B8,Liste_Aliments),3))*$C8)/INDEX(Liste_aliment!$A$3:$G$54,MATCH(Menu!$B8,Liste_Aliments),2)) ->  | K8: Coeficient Midi | L8: 0.5
D9: =IF($B9="","",((INDEX(Liste_aliment!$A$3:$G$54,MATCH(Menu!$B9,Liste_Aliments),4))*$C9)/INDEX(Liste_aliment!$A$3:$G$54,MATCH(Menu!$B9,Liste_Aliments),2)) ->  | E9: =IF($B9="","",((INDEX(Liste_aliment!$A$3:$G$54,MATCH(Menu!$B9,Liste_Aliments),5))*$C9)/INDEX(Liste_aliment!$A$3:$G$54,MATCH(Menu!$B9,Liste_Aliments),2)) ->  | F9: =IF($B9="","",((INDEX(Liste_aliment!$A$3:$G$54,MATCH(Menu!$B9,Liste_Aliments),6))*$C9)/INDEX(Liste_aliment!$A$3:$G$54,MATCH(Menu!$B9,Liste_Aliments),2)) ->  | G9: =IF($B9="","",((INDEX(Liste_aliment!$A$3:$G$54,MATCH(Menu!$B9,Liste_Aliments),3))*$C9)/INDEX(Liste_aliment!$A$3:$G$54,MATCH(Menu!$B9,Liste_Aliments),2)) ->  | K9: Coeficient Collation | L9: 0.05
D10: =IF($B10="","",((INDEX(Liste_aliment!$A$3:$G$54,MATCH(Menu!$B10,Liste_Aliments),4))*$C10)/INDEX(Liste_aliment!$A$3:$G$54,MATCH(Menu!$B10,Liste_Aliments),2)) ->  | E10: =IF($B10="","",((INDEX(Liste_aliment!$A$3:$G$54,MATCH(Menu!$B10,Liste_Aliments),5))*$C10)/INDEX(Liste_aliment!$A$3:$G$54,MATCH(Menu!$B10,Liste_Aliments),2)) ->  | F10: =IF($B10="","",((INDEX(Liste_aliment!$A$3:$G$54,MATCH(Menu!$B10,Liste_Aliments),6))*$C10)/INDEX(Liste_aliment!$A$3:$G$54,MATCH(Menu!$B10,Liste_Aliments),2)) ->  | G10: =IF($B10="","",((INDEX(Liste_aliment!$A$3:$G$54,MATCH(Menu!$B10,Liste_Aliments),3))*$C10)/INDEX(Liste_aliment!$A$3:$G$54,MATCH(Menu!$B10,Liste_Aliments),2)) ->  | K10: Coeficient Soir | L10: 0.25
D11: =IF($B11="","",((INDEX(Liste_aliment!$A$3:$G$54,MATCH(Menu!$B11,Liste_Aliments),4))*$C11)/INDEX(Liste_aliment!$A$3:$G$54,MATCH(Menu!$B11,Liste_Aliments),2)) ->  | E11: =IF($B11="","",((INDEX(Liste_aliment!$A$3:$G$54,MATCH(Menu!$B11,Liste_Aliments),5))*$C11)/INDEX(Liste_aliment!$A$3:$G$54,MATCH(Menu!$B11,Liste_Aliments),2)) ->  | F11: =IF($B11="","",((INDEX(Liste_aliment!$A$3:$G$54,MATCH(Menu!$B11,Liste_Aliments),6))*$C11)/INDEX(Liste_aliment!$A$3:$G$54,MATCH(Menu!$B11,Liste_Aliments),2)) ->  | G11: =IF($B11="","",((INDEX(Liste_aliment!$A$3:$G$54,MATCH(Menu!$B11,Liste_Aliments),3))*$C11)/INDEX(Liste_aliment!$A$3:$G$54,MATCH(Menu!$B11,Liste_Aliments),2)) ->  | K11: Total = 1 ? | L11: =IF(SUM(L7:L10)=1,"V","X") -> V
D12: =IF($B12="","",((INDEX(Liste_aliment!$A$3:$G$54,MATCH(Menu!$B12,Liste_Aliments),4))*$C12)/INDEX(Liste_aliment!$A$3:$G$54,MATCH(Menu!$B12,Liste_Aliments),2)) ->  | E12: =IF($B12="","",((INDEX(Liste_aliment!$A$3:$G$54,MATCH(Menu!$B12,Liste_Aliments),5))*$C12)/INDEX(Liste_aliment!$A$3:$G$54,MATCH(Menu!$B12,Liste_Aliments),2)) ->  | F12: =IF($B12="","",((INDEX(Liste_aliment!$A$3:$G$54,MATCH(Menu!$B12,Liste_Aliments),6))*$C12)/INDEX(Liste_aliment!$A$3:$G$54,MATCH(Menu!$B12,Liste_Aliments),2)) ->  | G12: =IF($B12="","",((INDEX(Liste_aliment!$A$3:$G$54,MATCH(Menu!$B12,Liste_Aliments),3))*$C12)/INDEX(Liste_aliment!$A$3:$G$54,MATCH(Menu!$B12,Liste_Aliments),2)) -> 
D13: =IF($B13="","",((INDEX(Liste_aliment!$A$3:$G$54,MATCH(Menu!$B13,Liste_Aliments),4))*$C13)/INDEX(Liste_aliment!$A$3:$G$54,MATCH(Menu!$B13,Liste_Aliments),2)) ->  | E13: =IF($B13="","",((INDEX(Liste_aliment!$A$3:$G$54,MATCH(Menu!$B13,Liste_Aliments),5))*$C13)/INDEX(Liste_aliment!$A$3:$G$54,MATCH(Menu!$B13,Liste_Aliments),2)) ->  | F13: =IF($B13="","",((INDEX(Liste_aliment!$A$3:$G$54,MATCH(Menu!$B13,Liste_Aliments),6))*$C13)/INDEX(Liste_aliment!$A$3:$G$54,MATCH(Menu!$B13,Liste_Aliments),2)) ->  | G13: =IF($B13="","",((INDEX(Liste_aliment!$A$3:$G$54,MATCH(Menu!$B13,Liste_Aliments),3))*$C13)/INDEX(Liste_aliment!$A$3:$G$54,MATCH(Menu!$B13,Liste_Aliments),2)) -> 
D14: =IF($B14="","",((INDEX(Liste_aliment!$A$3:$G$54,MATCH(Menu!$B14,Liste_Aliments),4))*$C14)/INDEX(Liste_aliment!$A$3:$G$54,MATCH(Menu!$B14,Liste_Aliments),2)) ->  | E14: =IF($B14="","",((INDEX(Liste_aliment!$A$3:$G$54,MATCH(Menu!$B14,Liste_Aliments),5))*$C14)/INDEX(Liste_aliment!$A$3:$G$54,MATCH(Menu!$B14,Liste_Aliments),2)) ->  | F14: =IF($B14="","",((INDEX(Liste_aliment!$A$3:$G$54,MATCH(Menu!$B14,Liste_Aliments),6))*$C14)/INDEX(Liste_aliment!$A$3:$G$54,MATCH(Menu!$B14,Liste_Aliments),2)) ->  | G14: =IF($B14="","",((INDEX(Liste_aliment!$A$3:$G$54,MATCH(Menu!$B14,Liste_Aliments),3))*$C14)/INDEX(Liste_aliment!$A$3:$G$54,MATCH(Menu!$B14,Liste_Aliments),2)) -> 
C16: Grammes : | D16: =SUM(D5:D14) -> 20.5 | E16: =SUM(E5:E14) -> 31.53 | F16: =SUM(F5:F14) -> 35.4 | G16: =SUM(G5:G14) -> 431.1
B17: Homme => | C17: Ideal : | D17: =ROUND(D71*L7,2) -> 30.26 | E17: =ROUND(E71*L7,2) -> 22.41 | F17: =ROUND(F71*L7,2) -> 20.17
B18: Femme => | C18: Ideal : | D18: =ROUND(D72*L7,2) -> 3.42 | E18: =ROUND(E72*L7,2) -> 2.53 | F18: =ROUND(F72*L7,2) -> 2.28
B20: MIDI
B21: steak haché - carrefour bio steak haché 100% muscle | C21: 300 | D21: =IF($B21="","",((INDEX(Liste_aliment!$A$3:$G$54,MATCH(Menu!$B21,Liste_Aliments),4))*$C21)/INDEX(Liste_aliment!$A$3:$G$54,MATCH(Menu!$B21,Liste_Aliments),2)) -> 57 | E21: =IF($B21="","",((INDEX(Liste_aliment!$A$3:$G$54,MATCH(Menu!$B21,Liste_Aliments),5))*$C21)/INDEX(Liste_aliment!$A$3:$G$54,MATCH(Menu!$B21,Liste_Aliments),2)) -> 36 | F21: =IF($B21="","",((INDEX(Liste_aliment!$A$3:$G$54,MATCH(Menu!$B21,Liste_Aliments),6))*$C21)/INDEX(Liste_aliment!$A$3:$G$54,MATCH(Menu!$B21,Liste_Aliments),2)) -> 0.6 | G21: =IF($B21="","",((INDEX(Liste_aliment!$A$3:$G$54,MATCH(Menu!$B21,Liste_Aliments),3))*$C21)/INDEX(Liste_aliment!$A$3:$G$54,MATCH(Menu!$B21,Liste_Aliments),2)) -> 555
B22: oeuf - carrefour bio oeuf de poules | C22: 100 | D22: =IF($B22="","",((INDEX(Liste_aliment!$A$3:$G$54,MATCH(Menu!$B22,Liste_Aliments),4))*$C22)/INDEX(Liste_aliment!$A$3:$G$54,MATCH(Menu!$B22,Liste_Aliments),2)) -> 12.6 | E22: =IF($B22="","",((INDEX(Liste_aliment!$A$3:$G$54,MATCH(Menu!$B22,Liste_Aliments),5))*$C22)/INDEX(Liste_aliment!$A$3:$G$54,MATCH(Menu!$B22,Liste_Aliments),2)) -> 9.9 | F22: =IF($B22="","",((INDEX(Liste_aliment!$A$3:$G$54,MATCH(Menu!$B22,Liste_Aliments),6))*$C22)/INDEX(Liste_aliment!$A$3:$G$54,MATCH(Menu!$B22,Liste_Aliments),2)) -> 0.8 | G22: =IF($B22="","",((INDEX(Liste_aliment!$A$3:$G$54,MATCH(Menu!$B22,Liste_Aliments),3))*$C22)/INDEX(Liste_aliment!$A$3:$G$54,MATCH(Menu!$B22,Liste_Aliments),2)) -> 142
B23: pomme - pomme | C23: 150 | D23: =IF($B23="","",((INDEX(Liste_aliment!$A$3:$G$54,MATCH(Menu!$B23,Liste_Aliments),4))*$C23)/INDEX(Liste_aliment!$A$3:$G$54,MATCH(Menu!$B23,Liste_Aliments),2)) -> 0.6 | E23: =IF($B23="","",((INDEX(Liste_aliment!$A$3:$G$54,MATCH(Menu!$B23,Liste_Aliments),5))*$C23)/INDEX(Liste_aliment!$A$3:$G$54,MATCH(Menu!$B23,Liste_Aliments),2)) -> 0.3 | F23: =IF($B23="","",((INDEX(Liste_aliment!$A$3:$G$54,MATCH(Menu!$B23,Liste_Aliments),6))*$C23)/INDEX(Liste_aliment!$A$3:$G$54,MATCH(Menu!$B23,Liste_Aliments),2)) -> 28.5 | G23: =IF($B23="","",((INDEX(Liste_aliment!$A$3:$G$54,MATCH(Menu!$B23,Liste_Aliments),3))*$C23)/INDEX(Liste_aliment!$A$3:$G$54,MATCH(Menu!$B23,Liste_Aliments),2)) -> 119.1
B24: brocoli - brocoli | C24: 200 | D24: =IF($B24="","",((INDEX(Liste_aliment!$A$3:$G$54,MATCH(Menu!$B24,Liste_Aliments),4))*$C24)/INDEX(Liste_aliment!$A$3:$G$54,MATCH(Menu!$B24,Liste_Aliments),2)) -> 6 | E24: =IF($B24="","",((INDEX(Liste_aliment!$A$3:$G$54,MATCH(Menu!$B24,Liste_Aliments),5))*$C24)/INDEX(Liste_aliment!$A$3:$G$54,MATCH(Menu!$B24,Liste_Aliments),2)) -> 0.8 | F24: =IF($B24="","",((INDEX(Liste_aliment!$A$3:$G$54,MATCH(Menu!$B24,Liste_Aliments),6))*$C24)/INDEX(Liste_aliment!$A$3:$G$54,MATCH(Menu!$B24,Liste_Aliments),2)) -> 4.8 | G24: =IF($B24="","",((INDEX(Liste_aliment!$A$3:$G$54,MATCH(Menu!$B24,Liste_Aliments),3))*$C24)/INDEX(Liste_aliment!$A$3:$G$54,MATCH(Menu!$B24,Liste_Aliments),2)) -> 50
D25: =IF($B25="","",((INDEX(Liste_aliment!$A$3:$G$54,MATCH(Menu!$B25,Liste_Aliments),4))*$C25)/INDEX(Liste_aliment!$A$3:$G$54,MATCH(Menu!$B25,Liste_Aliments),2)) ->  | E25: =IF($B25="","",((INDEX(Liste_aliment!$A$3:$G$54,MATCH(Menu!$B25,Liste_Aliments),5))*$C25)/INDEX(Liste_aliment!$A$3:$G$54,MATCH(Menu!$B25,Liste_Aliments),2)) ->  | F25: =IF($B25="","",((INDEX(Liste_aliment!$A$3:$G$54,MATCH(Menu!$B25,Liste_Aliments),6))*$C25)/INDEX(Liste_aliment!$A$3:$G$54,MATCH(Menu!$B25,Liste_Aliments),2)) ->  | G25: =IF($B25="","",((INDEX(Liste_aliment!$A$3:$G$54,MATCH(Menu!$B25,Liste_Aliments),3))*$C25)/INDEX(Liste_aliment!$A$3:$G$54,MATCH(Menu!$B25,Liste_Aliments),2)) -> 
D26: =IF($B26="","",((INDEX(Liste_aliment!$A$3:$G$54,MATCH(Menu!$B26,Liste_Aliments),4))*$C26)/INDEX(Liste_aliment!$A$3:$G$54,MATCH(Menu!$B26,Liste_Aliments),2)) ->  | E26: =IF($B26="","",((INDEX(Liste_aliment!$A$3:$G$54,MATCH(Menu!$B26,Liste_Aliments),5))*$C26)/INDEX(Liste_aliment!$A$3:$G$54,MATCH(Menu!$B26,Liste_Aliments),2)) ->  | F26: =IF($B26="","",((INDEX(Liste_aliment!$A$3:$G$54,MATCH(Menu!$B26,Liste_Aliments),6))*$C26)/INDEX(Liste_aliment!$A$3:$G$54,MATCH(Menu!$B26,Liste_Aliments),2)) ->  | G26: =IF($B26="","",((INDEX(Liste_aliment!$A$3:$G$54,MATCH(Menu!$B26,Liste_Aliments),3))*$C26)/INDEX(Liste_aliment!$A$3:$G$54,MATCH(Menu!$B26,Liste_Aliments),2)) -> 
D27: =IF($B27="","",((INDEX(Liste_aliment!$A$3:$G$54,MATCH(Menu!$B27,Liste_Aliments),4))*$C27)/INDEX(Liste_aliment!$A$3:$G$54,MATCH(Menu!$B27,Liste_Aliments),2)) ->  | E27: =IF($B27="","",((INDEX(Liste_aliment!$A$3:$G$54,MATCH(Menu!$B27,Liste_Aliments),5))*$C27)/INDEX(Liste_aliment!$A$3:$G$54,MATCH(Menu!$B27,Liste_Aliments),2)) ->  | F27: =IF($B27="","",((INDEX(Liste_aliment!$A$3:$G$54,MATCH(Menu!$B27,Liste_Aliments),6))*$C27)/INDEX(Liste_aliment!$A$3:$G$54,MATCH(Menu!$B27,Liste_Aliments),2)) ->  | G27: =IF($B27="","",((INDEX(Liste_aliment!$A$3:$G$54,MATCH(Menu!$B27,Liste_Aliments),3))*$C27)/INDEX(Liste_aliment!$A$3:$G$54,MATCH(Menu!$B27,Liste_Aliments),2)) -> 
D28: =IF($B28="","",((INDEX(Liste_aliment!$A$3:$G$54,MATCH(Menu!$B28,Liste_Aliments),4))*$C28)/INDEX(Liste_aliment!$A$3:$G$54,MATCH(Menu!$B28,Liste_Aliments),2)) ->  | E28: =IF($B28="","",((INDEX(Liste_aliment!$A$3:$G$54,MATCH(Menu!$B28,Liste_Aliments),5))*$C28)/INDEX(Liste_aliment!$A$3:$G$54,MATCH(Menu!$B28,Liste_Aliments),2)) ->  | F28: =IF($B28="","",((INDEX(Liste_aliment!$A$3:$G$54,MATCH(Menu!$B28,Liste_Aliments),6))*$C28)/INDEX(Liste_aliment!$A$3:$G$54,MATCH(Menu!$B28,Liste_Aliments),2)) ->  | G28: =IF($B28="","",((INDEX(Liste_aliment!$A$3:$G$54,MATCH(Menu!$B28,Liste_Aliments),3))*$C28)/INDEX(Liste_aliment!$A$3:$G$54,MATCH(Menu!$B28,Liste_Aliments),2)) -> 
D29: =IF($B29="","",((INDEX(Liste_aliment!$A$3:$G$54,MATCH(Menu!$B29,Liste_Aliments),4))*$C29)/INDEX(Liste_aliment!$A$3:$G$54,MATCH(Menu!$B29,Liste_Aliments),2)) ->  | E29: =IF($B29="","",((INDEX(Liste_aliment!$A$3:$G$54,MATCH(Menu!$B29,Liste_Aliments),5))*$C29)/INDEX(Liste_aliment!$A$3:$G$54,MATCH(Menu!$B29,Liste_Aliments),2)) ->  | F29: =IF($B29="","",((INDEX(Liste_aliment!$A$3:$G$54,MATCH(Menu!$B29,Liste_Aliments),6))*$C29)/INDEX(Liste_aliment!$A$3:$G$54,MATCH(Menu!$B29,Liste_Aliments),2)) ->  | G29: =IF($B29="","",((INDEX(Liste_aliment!$A$3:$G$54,MATCH(Menu!$B29,Liste_Aliments),3))*$C29)/INDEX(Liste_aliment!$A$3:$G$54,MATCH(Menu!$B29,Liste_Aliments),2)) -> 
D30: =IF($B30="","",((INDEX(Liste_aliment!$A$3:$G$54,MATCH(Menu!$B30,Liste_Aliments),4))*$C30)/INDEX(Liste_aliment!$A$3:$G$54,MATCH(Menu!$B30,Liste_Aliments),2)) ->  | E30: =IF($B30="","",((INDEX(Liste_aliment!$A$3:$G$54,MATCH(Menu!$B30,Liste_Aliments),5))*$C30)/INDEX(Liste_aliment!$A$3:$G$54,MATCH(Menu!$B30,Liste_Aliments),2)) ->  | F30: =IF($B30="","",((INDEX(Liste_aliment!$A$3:$G$54,MATCH(Menu!$B30,Liste_Aliments),6))*$C30)/INDEX(Liste_aliment!$A$3:$G$54,MATCH(Menu!$B30,Liste_Aliments),2)) ->  | G30: =IF($B30="","",((INDEX(Liste_aliment!$A$3:$G$54,MATCH(Menu!$B30,Liste_Aliments),3))*$C30)/INDEX(Liste_aliment!$A$3:$G$54,MATCH(Menu!$B30,Liste_Aliments),2)) -> 
C32: Grammes : | D32: =SUM(D21:D30) -> 76.2 | E32: =SUM(E21:E30) -> 47 | F32: =SUM(F21:F30) -> 34.7 | G32: =SUM(G21:G30) -> 866.1
B33: Homme => | C33: Ideal : | D33: =ROUND(D71*L8,2) -> 75.64 | E33: =ROUND(E71*L8,2) -> 56.03 | F33: =ROUND(F71*L8,2) -> 50.43
B34: Femme => | C34: Ideal : | D34: =ROUND(D72*L8,2) -> 8.55 | E34: =ROUND(E72*L8,2) -> 6.34 | F34: =ROUND(F72*L8,2) -> 5.7
B36: COLLATION
B37: Amandes | C37: 30 | D37: =IF($B37="","",((INDEX(Liste_aliment!$A$3:$G$54,MATCH(Menu!$B37,Liste_Aliments),4))*$C37)/INDEX(Liste_aliment!$A$3:$G$54,MATCH(Menu!$B37,Liste_Aliments),2)) -> 5.7 | E37: =IF($B37="","",((INDEX(Liste_aliment!$A$3:$G$54,MATCH(Menu!$B37,Liste_Aliments),5))*$C37)/INDEX(Liste_aliment!$A$3:$G$54,MATCH(Menu!$B37,Liste_Aliments),2)) -> 16.2 | F37: =IF($B37="","",((INDEX(Liste_aliment!$A$3:$G$54,MATCH(Menu!$B37,Liste_Aliments),6))*$C37)/INDEX(Liste_aliment!$A$3:$G$54,MATCH(Menu!$B37,Liste_Aliments),2)) -> 1.2 | G37: =IF($B37="","",((INDEX(Liste_aliment!$A$3:$G$54,MATCH(Menu!$B37,Liste_Aliments),3))*$C37)/INDEX(Liste_aliment!$A$3:$G$54,MATCH(Menu!$B37,Liste_Aliments),2)) -> 173.4
B38: banane - banane | C38: 150 | D38: =IF($B38="","",((INDEX(Liste_aliment!$A$3:$G$54,MATCH(Menu!$B38,Liste_Aliments),4))*$C38)/INDEX(Liste_aliment!$A$3:$G$54,MATCH(Menu!$B38,Liste_Aliments),2)) -> 1.65 | E38: =IF($B38="","",((INDEX(Liste_aliment!$A$3:$G$54,MATCH(Menu!$B38,Liste_Aliments),5))*$C38)/INDEX(Liste_aliment!$A$3:$G$54,MATCH(Menu!$B38,Liste_Aliments),2)) -> 0.45 | F38: =IF($B38="","",((INDEX(Liste_aliment!$A$3:$G$54,MATCH(Menu!$B38,Liste_Aliments),6))*$C38)/INDEX(Liste_aliment!$A$3:$G$54,MATCH(Menu!$B38,Liste_Aliments),2)) -> 32.7 | G38: =IF($B38="","",((INDEX(Liste_aliment!$A$3:$G$54,MATCH(Menu!$B38,Liste_Aliments),3))*$C38)/INDEX(Liste_aliment!$A$3:$G$54,MATCH(Menu!$B38,Liste_Aliments),2)) -> 141.45
D39: =IF($B39="","",((INDEX(Liste_aliment!$A$3:$G$54,MATCH(Menu!$B39,Liste_Aliments),4))*$C39)/INDEX(Liste_aliment!$A$3:$G$54,MATCH(Menu!$B39,Liste_Aliments),2)) ->  | E39: =IF($B39="","",((INDEX(Liste_aliment!$A$3:$G$54,MATCH(Menu!$B39,Liste_Aliments),5))*$C39)/INDEX(Liste_aliment!$A$3:$G$54,MATCH(Menu!$B39,Liste_Aliments),2)) ->  | F39: =IF($B39="","",((INDEX(Liste_aliment!$A$3:$G$54,MATCH(Menu!$B39,Liste_Aliments),6))*$C39)/INDEX(Liste_aliment!$A$3:$G$54,MATCH(Menu!$B39,Liste_Aliments),2)) ->  | G39: =IF($B39="","",((INDEX(Liste_aliment!$A$3:$G$54,MATCH(Menu!$B39,Liste_Aliments),3))*$C39)/INDEX(Liste_aliment!$A$3:$G$54,MATCH(Menu!$B39,Liste_Aliments),2)) -> 
D40: =IF($B40="","",((INDEX(Liste_aliment!$A$3:$G$54,MATCH(Menu!$B40,Liste_Aliments),4))*$C40)/INDEX(Liste_aliment!$A$3:$G$54,MATCH(Menu!$B40,Liste_Aliments),2)) ->  | E40: =IF($B40="","",((INDEX(Liste_aliment!$A$3:$G$54,MATCH(Menu!$B40,Liste_Aliments),5))*$C40)/INDEX(Liste_aliment!$A$3:$G$54,MATCH(Menu!$B40,Liste_Aliments),2)) ->  | F40: =IF($B40="","",((INDEX(Liste_aliment!$A$3:$G$54,MATCH(Menu!$B40,Liste_Aliments),6))*$C40)/INDEX(Liste_aliment!$A$3:$G$54,MATCH(Menu!$B40,Liste_Aliments),2)) ->  | G40: =IF($B40="","",((INDEX(Liste_aliment!$A$3:$G$54,MATCH(Menu!$B40,Liste_Aliments),3))*$C40)/INDEX(Liste_aliment!$A$3:$G$54,MATCH(Menu!$B40,Liste_Aliments),2)) -> 
D41: =IF($B41="","",((INDEX(Liste_aliment!$A$3:$G$54,MATCH(Menu!$B41,Liste_Aliments),4))*$C41)/INDEX(Liste_aliment!$A$3:$G$54,MATCH(Menu!$B41,Liste_Aliments),2)) ->  | E41: =IF($B41="","",((INDEX(Liste_aliment!$A$3:$G$54,MATCH(Menu!$B41,Liste_Aliments),5))*$C41)/INDEX(Liste_aliment!$A$3:$G$54,MATCH(Menu!$B41,Liste_Aliments),2)) ->  | F41: =IF($B41="","",((INDEX(Liste_aliment!$A$3:$G$54,MATCH(Menu!$B41,Liste_Aliments),6))*$C41)/INDEX(Liste_aliment!$A$3:$G$54,MATCH(Menu!$B41,Liste_Aliments),2)) ->  | G41: =IF($B41="","",((INDEX(Liste_aliment!$A$3:$G$54,MATCH(Menu!$B41,Liste_Aliments),3))*$C41)/INDEX(Liste_aliment!$A$3:$G$54,MATCH(Menu!$B41,Liste_Aliments),2)) -> 
D42: =IF($B42="","",((INDEX(Liste_aliment!$A$3:$G$54,MATCH(Menu!$B42,Liste_Aliments),4))*$C42)/INDEX(Liste_aliment!$A$3:$G$54,MATCH(Menu!$B42,Liste_Aliments),2)) ->  | E42: =IF($B42="","",((INDEX(Liste_aliment!$A$3:$G$54,MATCH(Menu!$B42,Liste_Aliments),5))*$C42)/INDEX(Liste_aliment!$A$3:$G$54,MATCH(Menu!$B42,Liste_Aliments),2)) ->  | F42: =IF($B42="","",((INDEX(Liste_aliment!$A$3:$G$54,MATCH(Menu!$B42,Liste_Aliments),6))*$C42)/INDEX(Liste_aliment!$A$3:$G$54,MATCH(Menu!$B42,Liste_Aliments),2)) ->  | G42: =IF($B42="","",((INDEX(Liste_aliment!$A$3:$G$54,MATCH(Menu!$B42,Liste_Aliments),3))*$C42)/INDEX(Liste_aliment!$A$3:$G$54,MATCH(Menu!$B42,Liste_Aliments),2)) -> 
D43: =IF($B43="","",((INDEX(Liste_aliment!$A$3:$G$54,MATCH(Menu!$B43,Liste_Aliments),4))*$C43)/INDEX(Liste_aliment!$A$3:$G$54,MATCH(Menu!$B43,Liste_Aliments),2)) ->  | E43: =IF($B43="","",((INDEX(Liste_aliment!$A$3:$G$54,MATCH(Menu!$B43,Liste_Aliments),5))*$C43)/INDEX(Liste_aliment!$A$3:$G$54,MATCH(Menu!$B43,Liste_Aliments),2)) ->  | F43: =IF($B43="","",((INDEX(Liste_aliment!$A$3:$G$54,MATCH(Menu!$B43,Liste_Aliments),6))*$C43)/INDEX(Liste_aliment!$A$3:$G$54,MATCH(Menu!$B43,Liste_Aliments),2)) ->  | G43: =IF($B43="","",((INDEX(Liste_aliment!$A$3:$G$54,MATCH(Menu!$B43,Liste_Aliments),3))*$C43)/INDEX(Liste_aliment!$A$3:$G$54,MATCH(Menu!$B43,Liste_Aliments),2)) -> 
D44: =IF($B44="","",((INDEX(Liste_aliment!$A$3:$G$54,MATCH(Menu!$B44,Liste_Aliments),4))*$C44)/INDEX(Liste_aliment!$A$3:$G$54,MATCH(Menu!$B44,Liste_Aliments),2)) ->  | E44: =IF($B44="","",((INDEX(Liste_aliment!$A$3:$G$54,MATCH(Menu!$B44,Liste_Aliments),5))*$C44)/INDEX(Liste_aliment!$A$3:$G$54,MATCH(Menu!$B44,Liste_Aliments),2)) ->  | F44: =IF($B44="","",((INDEX(Liste_aliment!$A$3:$G$54,MATCH(Menu!$B44,Liste_Aliments),6))*$C44)/INDEX(Liste_aliment!$A$3:$G$54,MATCH(Menu!$B44,Liste_Aliments),2)) ->  | G44: =IF($B44="","",((INDEX(Liste_aliment!$A$3:$G$54,MATCH(Menu!$B44,Liste_Aliments),3))*$C44)/INDEX(Liste_aliment!$A$3:$G$54,MATCH(Menu!$B44,Liste_Aliments),2)) -> 
D45: =IF($B45="","",((INDEX(Liste_aliment!$A$3:$G$54,MATCH(Menu!$B45,Liste_Aliments),4))*$C45)/INDEX(Liste_aliment!$A$3:$G$54,MATCH(Menu!$B45,Liste_Aliments),2)) ->  | E45: =IF($B45="","",((INDEX(Liste_aliment!$A$3:$G$54,MATCH(Menu!$B45,Liste_Aliments),5))*$C45)/INDEX(Liste_aliment!$A$3:$G$54,MATCH(Menu!$B45,Liste_Aliments),2)) ->  | F45: =IF($B45="","",((INDEX(Liste_aliment!$A$3:$G$54,MATCH(Menu!$B45,Liste_Aliments),6))*$C45)/INDEX(Liste_aliment!$A$3:$G$54,MATCH(Menu!$B45,Liste_Aliments),2)) ->  | G45: =IF($B45="","",((INDEX(Liste_aliment!$A$3:$G$54,MATCH(Menu!$B45,Liste_Aliments),3))*$C45)/INDEX(Liste_aliment!$A$3:$G$54,MATCH(Menu!$B45,Liste_Aliments),2)) -> 
D46: =IF($B46="","",((INDEX(Liste_aliment!$A$3:$G$54,MATCH(Menu!$B46,Liste_Aliments),4))*$C46)/INDEX(Liste_aliment!$A$3:$G$54,MATCH(Menu!$B46,Liste_Aliments),2)) ->  | E46: =IF($B46="","",((INDEX(Liste_aliment!$A$3:$G$54,MATCH(Menu!$B46,Liste_Aliments),5))*$C46)/INDEX(Liste_aliment!$A$3:$G$54,MATCH(Menu!$B46,Liste_Aliments),2)) ->  | F46: =IF($B46="","",((INDEX(Liste_aliment!$A$3:$G$54,MATCH(Menu!$B46,Liste_Aliments),6))*$C46)/INDEX(Liste_aliment!$A$3:$G$54,MATCH(Menu!$B46,Liste_Aliments),2)) ->  | G46: =IF($B46="","",((INDEX(Liste_aliment!$A$3:$G$54,MATCH(Menu!$B46,Liste_Aliments),3))*$C46)/INDEX(Liste_aliment!$A$3:$G$54,MATCH(Menu!$B46,Liste_Aliments),2)) -> 
C48: Grammes : | D48: =SUM(D37:D46) -> 7.35 | E48: =SUM(E37:E46) -> 16.65 | F48: =SUM(F37:F46) -> 33.9 | G48: =SUM(G37:G46) -> 314.85
B49: Homme => | C49: Ideal : | D49: =ROUND(D71*L9,2) -> 7.56 | E49: =ROUND(E71*L9,2) -> 5.6 | F49: =ROUND(F71*L9,2) -> 5.04
B50: Femme => | C50: Ideal : | D50: =ROUND(D72*L9,2) -> 0.86 | E50: =ROUND(E72*L9,2) -> 0.63 | F50: =ROUND(F72*L9,2) -> 0.57
B52: SOIR
B53: poulet filet - carrefour filet de poulet france | C53: 200 | D53: =IF($B53="","",((INDEX(Liste_aliment!$A$3:$G$54,MATCH(Menu!$B53,Liste_Aliments),4))*$C53)/INDEX(Liste_aliment!$A$3:$G$54,MATCH(Menu!$B53,Liste_Aliments),2)) -> 41.4 | E53: =IF($B53="","",((INDEX(Liste_aliment!$A$3:$G$54,MATCH(Menu!$B53,Liste_Aliments),5))*$C53)/INDEX(Liste_aliment!$A$3:$G$54,MATCH(Menu!$B53,Liste_Aliments),2)) -> 1.8 | F53: =IF($B53="","",((INDEX(Liste_aliment!$A$3:$G$54,MATCH(Menu!$B53,Liste_Aliments),6))*$C53)/INDEX(Liste_aliment!$A$3:$G$54,MATCH(Menu!$B53,Liste_Aliments),2)) -> 4.4 | G53: =IF($B53="","",((INDEX(Liste_aliment!$A$3:$G$54,MATCH(Menu!$B53,Liste_Aliments),3))*$C53)/INDEX(Liste_aliment!$A$3:$G$54,MATCH(Menu!$B53,Liste_Aliments),2)) -> 188
B54: brocoli - brocoli | C54: 200 | D54: =IF($B54="","",((INDEX(Liste_aliment!$A$3:$G$54,MATCH(Menu!$B54,Liste_Aliments),4))*$C54)/INDEX(Liste_aliment!$A$3:$G$54,MATCH(Menu!$B54,Liste_Aliments),2)) -> 6 | E54: =IF($B54="","",((INDEX(Liste_aliment!$A$3:$G$54,MATCH(Menu!$B54,Liste_Aliments),5))*$C54)/INDEX(Liste_aliment!$A$3:$G$54,MATCH(Menu!$B54,Liste_Aliments),2)) -> 0.8 | F54: =IF($B54="","",((INDEX(Liste_aliment!$A$3:$G$54,MATCH(Menu!$B54,Liste_Aliments),6))*$C54)/INDEX(Liste_aliment!$A$3:$G$54,MATCH(Menu!$B54,Liste_Aliments),2)) -> 4.8 | G54: =IF($B54="","",((INDEX(Liste_aliment!$A$3:$G$54,MATCH(Menu!$B54,Liste_Aliments),3))*$C54)/INDEX(Liste_aliment!$A$3:$G$54,MATCH(Menu!$B54,Liste_Aliments),2)) -> 50
B55: huile olive - carrefour bio huile dolive vierfe extra | C55: 20 | D55: =IF($B55="","",((INDEX(Liste_aliment!$A$3:$G$54,MATCH(Menu!$B55,Liste_Aliments),4))*$C55)/INDEX(Liste_aliment!$A$3:$G$54,MATCH(Menu!$B55,Liste_Aliments),2)) -> 0 | E55: =IF($B55="","",((INDEX(Liste_aliment!$A$3:$G$54,MATCH(Menu!$B55,Liste_Aliments),5))*$C55)/INDEX(Liste_aliment!$A$3:$G$54,MATCH(Menu!$B55,Liste_Aliments),2)) -> 18.2 | F55: =IF($B55="","",((INDEX(Liste_aliment!$A$3:$G$54,MATCH(Menu!$B55,Liste_Aliments),6))*$C55)/INDEX(Liste_aliment!$A$3:$G$54,MATCH(Menu!$B55,Liste_Aliments),2)) -> 0 | G55: =IF($B55="","",((INDEX(Liste_aliment!$A$3:$G$54,MATCH(Menu!$B55,Liste_Aliments),3))*$C55)/INDEX(Liste_aliment!$A$3:$G$54,MATCH(Menu!$B55,Liste_Aliments),2)) -> 164.4
D56: =IF($B56="","",((INDEX(Liste_aliment!$A$3:$G$54,MATCH(Menu!$B56,Liste_Aliments),4))*$C56)/INDEX(Liste_aliment!$A$3:$G$54,MATCH(Menu!$B56,Liste_Aliments),2)) ->  | E56: =IF($B56="","",((INDEX(Liste_aliment!$A$3:$G$54,MATCH(Menu!$B56,Liste_Aliments),5))*$C56)/INDEX(Liste_aliment!$A$3:$G$54,MATCH(Menu!$B56,Liste_Aliments),2)) ->  | F56: =IF($B56="","",((INDEX(Liste_aliment!$A$3:$G$54,MATCH(Menu!$B56,Liste_Aliments),6))*$C56)/INDEX(Liste_aliment!$A$3:$G$54,MATCH(Menu!$B56,Liste_Aliments),2)) ->  | G56: =IF($B56="","",((INDEX(Liste_aliment!$A$3:$G$54,MATCH(Menu!$B56,Liste_Aliments),3))*$C56)/INDEX(Liste_aliment!$A$3:$G$54,MATCH(Menu!$B56,Liste_Aliments),2)) -> 
D57: =IF($B57="","",((INDEX(Liste_aliment!$A$3:$G$54,MATCH(Menu!$B57,Liste_Aliments),4))*$C57)/INDEX(Liste_aliment!$A$3:$G$54,MATCH(Menu!$B57,Liste_Aliments),2)) ->  | E57: =IF($B57="","",((INDEX(Liste_aliment!$A$3:$G$54,MATCH(Menu!$B57,Liste_Aliments),5))*$C57)/INDEX(Liste_aliment!$A$3:$G$54,MATCH(Menu!$B57,Liste_Aliments),2)) ->  | F57: =IF($B57="","",((INDEX(Liste_aliment!$A$3:$G$54,MATCH(Menu!$B57,Liste_Aliments),6))*$C57)/INDEX(Liste_aliment!$A$3:$G$54,MATCH(Menu!$B57,Liste_Aliments),2)) ->  | G57: =IF($B57="","",((INDEX(Liste_aliment!$A$3:$G$54,MATCH(Menu!$B57,Liste_Aliments),3))*$C57)/INDEX(Liste_aliment!$A$3:$G$54,MATCH(Menu!$B57,Liste_Aliments),2)) -> 
D58: =IF($B58="","",((INDEX(Liste_aliment!$A$3:$G$54,MATCH(Menu!$B58,Liste_Aliments),4))*$C58)/INDEX(Liste_aliment!$A$3:$G$54,MATCH(Menu!$B58,Liste_Aliments),2)) ->  | E58: =IF($B58="","",((INDEX(Liste_aliment!$A$3:$G$54,MATCH(Menu!$B58,Liste_Aliments),5))*$C58)/INDEX(Liste_aliment!$A$3:$G$54,MATCH(Menu!$B58,Liste_Aliments),2)) ->  | F58: =IF($B58="","",((INDEX(Liste_aliment!$A$3:$G$54,MATCH(Menu!$B58,Liste_Aliments),6))*$C58)/INDEX(Liste_aliment!$A$3:$G$54,MATCH(Menu!$B58,Liste_Aliments),2)) ->  | G58: =IF($B58="","",((INDEX(Liste_aliment!$A$3:$G$54,MATCH(Menu!$B58,Liste_Aliments),3))*$C58)/INDEX(Liste_aliment!$A$3:$G$54,MATCH(Menu!$B58,Liste_Aliments),2)) -> 
D59: =IF($B59="","",((INDEX(Liste_aliment!$A$3:$G$54,MATCH(Menu!$B59,Liste_Aliments),4))*$C59)/INDEX(Liste_aliment!$A$3:$G$54,MATCH(Menu!$B59,Liste_Aliments),2)) ->  | E59: =IF($B59="","",((INDEX(Liste_aliment!$A$3:$G$54,MATCH(Menu!$B59,Liste_Aliments),5))*$C59)/INDEX(Liste_aliment!$A$3:$G$54,MATCH(Menu!$B59,Liste_Aliments),2)) ->  | F59: =IF($B59="","",((INDEX(Liste_aliment!$A$3:$G$54,MATCH(Menu!$B59,Liste_Aliments),6))*$C59)/INDEX(Liste_aliment!$A$3:$G$54,MATCH(Menu!$B59,Liste_Aliments),2)) ->  | G59: =IF($B59="","",((INDEX(Liste_aliment!$A$3:$G$54,MATCH(Menu!$B59,Liste_Aliments),3))*$C59)/INDEX(Liste_aliment!$A$3:$G$54,MATCH(Menu!$B59,Liste_Aliments),2)) -> 
D60: =IF($B60="","",((INDEX(Liste_aliment!$A$3:$G$54,MATCH(Menu!$B60,Liste_Aliments),4))*$C60)/INDEX(Liste_aliment!$A$3:$G$54,MATCH(Menu!$B60,Liste_Aliments),2)) ->  | E60: =IF($B60="","",((INDEX(Liste_aliment!$A$3:$G$54,MATCH(Menu!$B60,Liste_Aliments),5))*$C60)/INDEX(Liste_aliment!$A$3:$G$54,MATCH(Menu!$B60,Liste_Aliments),2)) ->  | F60: =IF($B60="","",((INDEX(Liste_aliment!$A$3:$G$54,MATCH(Menu!$B60,Liste_Aliments),6))*$C60)/INDEX(Liste_aliment!$A$3:$G$54,MATCH(Menu!$B60,Liste_Aliments),2)) ->  | G60: =IF($B60="","",((INDEX(Liste_aliment!$A$3:$G$54,MATCH(Menu!$B60,Liste_Aliments),3))*$C60)/INDEX(Liste_aliment!$A$3:$G$54,MATCH(Menu!$B60,Liste_Aliments),2)) -> 
D61: =IF($B61="","",((INDEX(Liste_aliment!$A$3:$G$54,MATCH(Menu!$B61,Liste_Aliments),4))*$C61)/INDEX(Liste_aliment!$A$3:$G$54,MATCH(Menu!$B61,Liste_Aliments),2)) ->  | E61: =IF($B61="","",((INDEX(Liste_aliment!$A$3:$G$54,MATCH(Menu!$B61,Liste_Aliments),5))*$C61)/INDEX(Liste_aliment!$A$3:$G$54,MATCH(Menu!$B61,Liste_Aliments),2)) ->  | F61: =IF($B61="","",((INDEX(Liste_aliment!$A$3:$G$54,MATCH(Menu!$B61,Liste_Aliments),6))*$C61)/INDEX(Liste_aliment!$A$3:$G$54,MATCH(Menu!$B61,Liste_Aliments),2)) ->  | G61: =IF($B61="","",((INDEX(Liste_aliment!$A$3:$G$54,MATCH(Menu!$B61,Liste_Aliments),3))*$C61)/INDEX(Liste_aliment!$A$3:$G$54,MATCH(Menu!$B61,Liste_Aliments),2)) -> 
D62: =IF($B62="","",((INDEX(Liste_aliment!$A$3:$G$54,MATCH(Menu!$B62,Liste_Aliments),4))*$C62)/INDEX(Liste_aliment!$A$3:$G$54,MATCH(Menu!$B62,Liste_Aliments),2)) ->  | E62: =IF($B62="","",((INDEX(Liste_aliment!$A$3:$G$54,MATCH(Menu!$B62,Liste_Aliments),5))*$C62)/INDEX(Liste_aliment!$A$3:$G$54,MATCH(Menu!$B62,Liste_Aliments),2)) ->  | F62: =IF($B62="","",((INDEX(Liste_aliment!$A$3:$G$54,MATCH(Menu!$B62,Liste_Aliments),6))*$C62)/INDEX(Liste_aliment!$A$3:$G$54,MATCH(Menu!$B62,Liste_Aliments),2)) ->  | G62: =IF($B62="","",((INDEX(Liste_aliment!$A$3:$G$54,MATCH(Menu!$B62,Liste_Aliments),3))*$C62)/INDEX(Liste_aliment!$A$3:$G$54,MATCH(Menu!$B62,Liste_Aliments),2)) -> 
C64: Grammes : | D64: =SUM(D53:D62) -> 47.4 | E64: =SUM(E53:E62) -> 20.8 | F64: =SUM(F53:F62) -> 9.2 | G64: =SUM(G53:G62) -> 402.4
B65: Homme => | C65: Ideal : | D65: =ROUND(D71*L10,2) -> 37.82 | E65: =ROUND(E71*L10,2) -> 28.02 | F65: =ROUND(F71*L10,2) -> 25.21
B66: Femme => | C66: Ideal : | D66: =ROUND(D72*L10,2) -> 4.28 | E66: =ROUND(E72*L10,2) -> 3.17 | F66: =ROUND(F72*L10,2) -> 2.85
B68: Total quotidien => | C68: Grammes : | D68: =D16+D32+D48+D64 -> 151.45 | E68: =E16+E32+E48+E64 -> 115.98 | F68: 113.2 | G68: 2014.45
B69: Total quotidien => | C69: Calories : | D69: =D68*4 -> 605.8 | E69: =E68*9 -> 1043.82 | F69: =F68*4 -> 452.8
B71: Homme => | C71: A atteindre : | D71: =IF(Preparation!$E$34="V",Preparation!$C$19,IF(Preparation!$E$35="V",Preparation!$C$24,IF(Preparation!$E$36="V",Preparation!$C$29,Preparation!$C$29))) -> 151.28 | E71: =IF(Preparation!$E$34="V",Preparation!$C$20,IF(Preparation!$E$35="V",Preparation!$C$25,IF(Preparation!$E$36="V",Preparation!$C$30,Preparation!$C$30))) -> 112.06 | F71: =IF(Preparation!$E$34="V",Preparation!$C$21,IF(Preparation!$E$35="V",Preparation!$C$26,IF(Preparation!$E$36="V",Preparation!$C$31,Preparation!$C$31))) -> 100.85
B72: Femme => | C72: A atteindre : | D72: =IF(Preparation!$E$34="V",Preparation!$G$19,IF(Preparation!$E$35="V",Preparation!$G$24,IF(Preparation!$E$36="V",Preparation!$G$29,Preparation!$G$29))) -> 17.1 | E72: =IF(Preparation!$E$34="V",Preparation!$G$20,IF(Preparation!$E$35="V",Preparation!$G$25,IF(Preparation!$E$36="V",Preparation!$G$30,Preparation!$G$30))) -> 12.67 | F72: =IF(Preparation!$E$34="V",Preparation!$G$21,IF(Preparation!$E$35="V",Preparation!$G$26,IF(Preparation!$E$36="V",Preparation!$G$31,Preparation!$G$31))) -> 11.4

Sheet Généré_Course

Sheet Liste_de_course
A1: Article | B1: Quantité (Grammes) | C1: Quantité (Unité)
A2: oeuf - carrefour bio oeuf de poules | B2: 600 | C2: 12
A3: orange jus | B3: 1200 | C3: 36.36363636
A4: Amandes | B4: 300 | C4: 12
A5: poisson thon boite - petit navire thon entier au naturel | B5: 200 | C5: 3.571428571
A6: Crevettes cuites | B6: 100 | C6: 1
A7: pomme - pomme | B7: 450 | C7: 3.214285714
A8: haricot vert - haricot vert | B8: 200 | C8: 0.8
A9: poisson saumon - poisson saumon pave | B9: 200 | C9: 1.333333333
A10: Epinard frais | B10: 200 | C10: 2
A11: huile olive - carrefour bio huile dolive vierfe extra | B11: 25 | C11: 0.8333333333
A12: steak haché - carrefour bio steak haché 100% muscle | B12: 600 | C12: 4.8
A13: brocoli - brocoli | B13: 800 | C13: 3.2
A14: banane - banane | B14: 300 | C14: 2
A15: poulet filet - carrefour filet de poulet france | B15: 400 | C15: 2.857142857

Sheet Sauv_Menu
B2: Lundi | J2: Mardi | R2: Mercredi | Z2: Jeudi | AH2: Vendredi | AP2: Samedi | AX2: Dimanche
B4: Aliments | C4: Quantité | D4: Protéines | E4: Lipides | F4: Glucides | G4: Calories | J4: Aliments | K4: Quantité | L4: Protéines | M4: Lipides | N4: Glucides | O4: Calories | R4: Aliments | S4: Quantité | T4: Protéines | U4: Lipides | V4: Glucides | W4: Calories | Z4: Aliments | AA4: Quantité | AB4: Protéines | AC4: Lipides | AD4: Glucides | AE4: Calories | AH4: Aliments | AI4: Quantité | AJ4: Protéines | AK4: Lipides | AL4: Glucides | AM4: Calories | AP4: Aliments | AQ4: Quantité | AR4: Protéines | AS4: Lipides | AT4: Glucides | AU4: Calories | AX4: Aliments | AY4: Quantité | AZ4: Protéines | BA4: Lipides | BB4: Glucides | BC4: Calories
B6: MATIN | J6: MATIN | R6: MATIN | Z6: MATIN | AH6: MATIN | AP6: MATIN | AX6: MATIN
J7: oeuf - carrefour bio oeuf de poules | K7: 100 | L7: 12.6 | M7: 9.9 | N7: 0.8 | O7: 142 | R7: oeuf - carrefour bio oeuf de poules | S7: 100 | T7: 12.6 | U7: 9.9 | V7: 0.8 | W7: 142 | X7: 0.8 | Y7: 142 | Z7: oeuf - carrefour bio oeuf de poules | AA7: 100 | AB7: 12.6 | AC7: 9.9 | AD7: 0.8 | AE7: 142 | AF7: 0.8 | AG7: 142 | AH7: oeuf - carrefour bio oeuf de poules | AI7: 100 | AJ7: 12.6 | AK7: 9.9 | AL7: 0.8 | AM7: 142 | AP7: oeuf - carrefour bio oeuf de poules | AQ7: 150 | AR7: 18.9 | AS7: 14.85 | AT7: 1.2 | AU7: 213
J8: orange jus | K8: 300 | L8: 0.3 | M8: 0.03 | N8: 33 | O8: 57.9 | R8: orange jus | S8: 300 | T8: 0.3 | U8: 0.03 | V8: 33 | W8: 57.9 | X8: 3.63 | Y8: 63.69 | Z8: orange jus | AA8: 300 | AB8: 0.3 | AC8: 0.03 | AD8: 33 | AE8: 57.9 | AF8: 3.63 | AG8: 63.69 | AH8: orange jus | AI8: 300 | AJ8: 0.3 | AK8: 0.03 | AL8: 33 | AM8: 57.9 | AP8: orange jus | AQ8: 300 | AR8: 0.3 | AS8: 0.03 | AT8: 33 | AU8: 57.9
J9: Amandes | K9: 40 | L9: 7.6 | M9: 21.6 | N9: 1.6 | O9: 231.2 | R9: Amandes | S9: 40 | T9: 7.6 | U9: 21.6 | V9: 1.6 | W9: 231.2 | Z9: Amandes | AA9: 40 | AB9: 7.6 | AC9: 21.6 | AD9: 1.6 | AE9: 231.2 | AH9: Amandes | AI9: 40 | AJ9: 7.6 | AK9: 21.6 | AL9: 1.6 | AM9: 231.2 | AP9: Amandes | AQ9: 40 | AR9: 7.6 | AS9: 21.6 | AT9: 1.6 | AU9: 231.2
B18: MIDI | J18: MIDI | R18: MIDI | Z18: MIDI | AH18: MIDI | AP18: MIDI | AX18: MIDI
B19: poulet filet - carrefour filet de poulet france | C19: 350 | D19: 72.45 | E19: 3.15 | F19: 7.7 | G19: 329 | J19: poisson thon boite - petit navire thon entier au naturel | K19: 200 | L19: 50 | M19: 2 | N19: 0.2 | O19: 218 | R19: steak haché - carrefour bio steak haché 100% muscle | S19: 300 | T19: 57 | U19: 36 | V19: 0.6 | W19: 555 | X19: 0.2 | Y19: 185 | AF19: 0.2 | AG19: 185 | AH19: steak haché - carrefour bio steak haché 100% muscle | AI19: 300 | AJ19: 57 | AK19: 36 | AL19: 0.6 | AM19: 555 | AP19: carrotte - carotte | AQ19: 150 | AR19: 1.2 | AS19: 0.45 | AT19: 7.65 | AU19: 39.45 | AX19: Homme => | AY19: Ideal : | AZ19: 28.5 | BA19: 38.32 | BB19: 36.55
B20: avocat - avocat | C20: 100 | D20: 2 | E20: 22 | F20: 3.5 | G20: 220 | J20: Crevettes cuites | K20: 100 | L20: 18.1 | M20: 0.8 | N20: 0 | O20: 80 | R20: oeuf - carrefour bio oeuf de poules | S20: 100 | T20: 12.6 | U20: 9.9 | V20: 0.8 | W20: 142 | X20: 6 | Y20: 62.5 | AF20: 6 | AG20: 62.5 | AH20: oeuf - carrefour bio oeuf de poules | AI20: 100 | AJ20: 12.6 | AK20: 9.9 | AL20: 0.8 | AM20: 142 | AP20: oeuf - carrefour bio oeuf de poules | AQ20: 250 | AR20: 31.5 | AS20: 24.75 | AT20: 2 | AU20: 355 | AX20: Femme => | AY20: Ideal : | AZ20: 0.3 | BA20: 4.33 | BB20: 7.05
B21: oeuf - carrefour bio oeuf de poules | C21: 250 | D21: 31.5 | E21: 24.75 | F21: 2 | G21: 355 | J21: pomme - pomme | K21: 150 | L21: 0.6 | M21: 0.3 | N21: 28.5 | O21: 119.1 | R21: pomme - pomme | S21: 150 | T21: 0.6 | U21: 0.3 | V21: 28.5 | W21: 119.1 | X21: 26.6 | Y21: 111.16 | AF21: 26.6 | AG21: 111.16 | AH21: pomme - pomme | AI21: 150 | AJ21: 0.6 | AK21: 0.3 | AL21: 28.5 | AM21: 119.1 | AP21: pomme - pomme | AQ21: 75 | AR21: 0.3 | AS21: 0.15 | AT21: 14.25 | AU21: 59.55
B22: carrotte - carotte | C22: 200 | D22: 1.6 | E22: 0.6 | F22: 10.2 | G22: 52.6 | J22: Amandes | K22: 80 | L22: 15.2 | M22: 43.2 | N22: 3.2 | O22: 462.4 | R22: brocoli - brocoli | S22: 200 | T22: 6 | U22: 0.8 | V22: 4.8 | W22: 50 | AH22: brocoli - brocoli | AI22: 200 | AJ22: 6 | AK22: 0.8 | AL22: 4.8 | AM22: 50 | AP22: Amandes | AQ22: 60 | AR22: 11.4 | AS22: 32.4 | AT22: 2.4 | AU22: 346.8 | AX22: MIDI
B23: huile olive - carrefour bio huile dolive vierfe extra | C23: 30 | D23: 0 | E23: 27.3 | F23: 0 | G23: 246.6 | J23: haricot vert - haricot vert | K23: 200 | L23: 3.2 | M23: 0.2 | N23: 6.4 | O23: 40.2 | AX23: poisson thon boite - petit navire thon entier au naturel | AY23: 240 | AZ23: 60 | BA23: 2.4 | BB23: 0.24 | BC23: 261.6
B24: concombre - concombre | C24: 100 | D24: 0.7 | E24: 0.1 | F24: 2 | G24: 11.7 | AX24: Crevettes cuites | AY24: 170 | AZ24: 30.77 | BA24: 1.36 | BB24: 0 | BC24: 136
AX25: avocat - avocat | AY25: 200 | AZ25: 4 | BA25: 44 | BB25: 7 | BC25: 440
AX26: Tomate cerise | AY26: 300 | AZ26: 2.4 | BA26: 0.9 | BB26: 10.5 | BC26: 60
AX27: huile olive - carrefour bio huile dolive vierfe extra | AY27: 30 | AZ27: 0 | BA27: 27.3 | BB27: 0 | BC27: 246.6
AX28: pomme - pomme | AY28: 140 | AZ28: 0.56 | BA28: 0.28 | BB28: 26.6 | BC28: 111.16
B30: COLLATION | J30: COLLATION | R30: COLLATION | Z30: COLLATION | AH30: COLLATION | AP30: COLLATION | AX30: COLLATION
B31: pomme - pomme | C31: 140 | D31: 0.56 | E31: 0.28 | F31: 26.6 | G31: 111.16 | R31: Amandes | S31: 30 | T31: 5.7 | U31: 16.2 | V31: 1.2 | W31: 173.4 | X31: 1.02 | Y31: 5.26 | AF31: 1.02 | AG31: 5.26 | AH31: Amandes | AI31: 30 | AJ31: 5.7 | AK31: 16.2 | AL31: 1.2 | AM31: 173.4 | AP31: pomme - pomme | AQ31: 75 | AR31: 0.3 | AS31: 0.15 | AT31: 14.25 | AU31: 59.55
B32: orange jus | C32: 33 | D32: 0.033 | E32: 0.0033 | F32: 3.63 | G32: 63.69 | R32: banane - banane | S32: 150 | T32: 1.65 | U32: 0.45 | V32: 32.7 | W32: 141.45 | X32: 12 | Y32: 116 | AF32: 12 | AG32: 116 | AH32: banane - banane | AI32: 150 | AJ32: 1.65 | AK32: 0.45 | AL32: 32.7 | AM32: 141.45 | AP32: orange jus | AQ32: 300 | AR32: 0.3 | AS32: 0.03 | AT32: 33 | AU32: 57.9
AY34: Grammes : | AZ34: 105.33 | BA34: 97.84 | BB34: 45.94 | BC34: 1486.56
AX35: Homme => | AY35: Ideal : | AZ35: 28.5 | BA35: 38.32 | BB35: 36.55
AX36: Femme => | AY36: Ideal : | AZ36: 0.3 | BA36: 4.33 | BB36: 7.05
AX38: COLLATION
AX39: pomme - pomme | AY39: 140 | AZ39: 0.56 | BA39: 0.28 | BB39: 26.6 | BC39: 111.16
AX40: orange jus | AY40: 33 | AZ40: 0.033 | BA40: 0.0033 | BB40: 3.63 | BC40: 63.69
B42: SOIR | J42: SOIR | R42: SOIR | Z42: SOIR | AH42: SOIR | AP42: SOIR | AX42: SOIR
B43: poisson saumon - poisson saumon pave | C43: 200 | D43: 41.6 | E43: 21.4 | F43: 0 | G43: 359 | R43: poulet filet - carrefour filet de poulet france | S43: 200 | T43: 41.4 | U43: 1.8 | V43: 4.4 | W43: 188 | X43: 4.4 | Y43: 188 | Z43: poisson saumon - poisson saumon pave | AA43: 200 | AB43: 41.6 | AC43: 21.4 | AD43: 0 | AE43: 359 | AF43: 0 | AG43: 276 | AH43: poulet filet - carrefour filet de poulet france | AI43: 200 | AJ43: 41.4 | AK43: 1.8 | AL43: 4.4 | AM43: 188 | AP43: poisson saumon - poisson saumon pave | AQ43: 100 | AR43: 20.8 | AS43: 10.7 | AT43: 0 | AU43: 179.5
B44: haricot vert - haricot vert | C44: 200 | D44: 3.2 | E44: 0.2 | F44: 6.4 | G44: 40.2 | R44: brocoli - brocoli | S44: 200 | T44: 6 | U44: 0.8 | V44: 4.8 | W44: 50 | X44: 1.2 | Y44: 213 | Z44: Epinard frais | AA44: 200 | AB44: 5.4 | AC44: 0.6 | AD44: 2.6 | AE44: 38 | AF44: 0.8 | AG44: 142 | AH44: brocoli - brocoli | AI44: 200 | AJ44: 6 | AK44: 0.8 | AL44: 4.8 | AM44: 50 | AP44: Epinard frais | AQ44: 150 | AR44: 4.05 | AS44: 0.45 | AT44: 1.95 | AU44: 28.5
B45: moutarde - Amora | C45: 30 | D45: 2.37 | E45: 3.6 | F45: 1.32 | G45: 48.3 | R45: huile olive - carrefour bio huile dolive vierfe extra | S45: 20 | T45: 0 | U45: 18.2 | V45: 0 | W45: 164.4 | X45: 0 | Y45: 246.6 | Z45: huile olive - carrefour bio huile dolive vierfe extra | AA45: 5 | AB45: 0 | AC45: 4.55 | AD45: 0 | AE45: 41.1 | AF45: 0 | AG45: 246.6 | AH45: huile olive - carrefour bio huile dolive vierfe extra | AI45: 20 | AJ45: 0 | AK45: 18.2 | AL45: 0 | AM45: 164.4 | AP45: huile olive - carrefour bio huile dolive vierfe extra | AQ45: 20 | AR45: 0 | AS45: 18.2 | AT45: 0 | AU45: 164.4
B46: huile olive - carrefour bio huile dolive vierfe extra | C46: 10 | D46: 0 | E46: 9.1 | F46: 0 | G46: 82.2 | Z46: moutarde - Amora | AA46: 30 | AB46: 2.37 | AC46: 3.6 | AD46: 1.32 | AE46: 48.3
AY50: Grammes : | AZ50: 0.593 | BA50: 0.2833 | BB50: 30.23 | BC50: 174.85
AX51: Homme => | AY51: Ideal : | AZ51: 14.25 | BA51: 19.16 | BB51: 18.28
AX52: Femme => | AY52: Ideal : | AZ52: 0.15 | BA52: 2.17 | BB52: 3.53
C53: Grammes : | D53: 156.013 | E53: 112.4833 | F53: 63.35 | G53: 1919.45 | K53: Grammes : | L53: 107.6 | M53: 78.03 | N53: 73.7 | O53: 1350.8 | S53: Grammes : | T53: 151.45 | U53: 115.98 | V53: 113.2 | W53: 2014.45 | AA53: Grammes : | AB53: 69.87 | AC53: 61.68 | AD53: 39.32 | AE53: 917.5 | AI53: Grammes : | AJ53: 151.45 | AK53: 115.98 | AL53: 113.2 | AM53: 2014.45 | AN53: 57.75 | AO53: 1164.65 | AQ53: Grammes : | AR53: 96.65 | AS53: 123.76 | AT53: 111.3 | AU53: 1792.75 | AY53: Grammes :
C54: Calories : | D54: 624.052 | E54: 1012.3497 | F54: 253.4 | K54: Calories : | L54: 430.4 | M54: 702.27 | N54: 294.8 | S54: Calories : | T54: 605.8 | U54: 1043.82 | V54: 452.8 | AA54: Calories : | AB54: 279.48 | AC54: 555.12 | AD54: 157.28 | AI54: Calories : | AJ54: 605.8 | AK54: 1043.82 | AL54: 452.8 | AN54: 231 | AQ54: Calories : | AR54: 386.6 | AS54: 1113.84 | AT54: 445.2 | AY54: Calories :
AZ55: 41.4 | BA55: 1.8 | BB55: 4.4 | BC55: 188
B56: Homme => | C56: A atteindre : | D56: 167.85 | E56: 124.33 | F56: 111.9 | J56: Homme => | K56: A atteindre : | L56: 151.28 | M56: 112.06 | N56: 100.85 | R56: Homme => | S56: A atteindre : | T56: 151.28 | U56: 112.06 | V56: 100.85 | Z56: Homme => | AA56: A atteindre : | AB56: 151.28 | AC56: 112.06 | AD56: 100.85 | AH56: Homme => | AI56: A atteindre : | AJ56: 151.28 | AK56: 112.06 | AL56: 100.85 | AN56: 121.84 | AP56: Homme => | AQ56: A atteindre : | AR56: 95 | AS56: 127.74 | AT56: 121.84 | AX56: Homme => | AY56: A atteindre : | AZ56: 6 | BA56: 0.8 | BB56: 4.8 | BC56: 50
B57: Femme => | C57: A atteindre : | D57: 17.1 | E57: 12.67 | F57: 11.4 | J57: Femme => | K57: A atteindre : | L57: 17.1 | M57: 12.67 | N57: 11.4 | R57: Femme => | S57: A atteindre : | T57: 17.1 | U57: 12.67 | V57: 11.4 | Z57: Femme => | AA57: A atteindre : | AB57: 17.1 | AC57: 12.67 | AD57: 11.4 | AH57: Femme => | AI57: A atteindre : | AJ57: 17.1 | AK57: 12.67 | AL57: 11.4 | AN57: 23.51 | AP57: Femme => | AQ57: A atteindre : | AR57: 1 | AS57: 14.44 | AT57: 23.51 | AX57: Femme => | AY57: A atteindre : | AZ57: 2.37 | BA57: 3.6 | BB57: 1.32 | BC57: 48.3

Sheet Liste_Menu

Sheet npt
A1: Aliment - Marque | B1: Mesure pour | C1: Calories | D1: Protéines | E1: Lipides | F1: Glucides | G1: Pour 1 personne | H1: Notes | I1: Poids à l'unité | O1: Lundi
A2: - | B2: g / cl | C2: g | D2: g | E2: g | F2: g | G2: g / cl | H2: - | I2: - | O2: Mardi
A3: avocat - avocat | B3: 200 | C3: 440 | D3: 4 | E3: 44 | F3: 7 | G3: 200 | H3: 1 avocat = 200g | I3: 200 | O3: Mercredi
A4: banane - banane | B4: 150 | C4: 141.45 | D4: 1.65 | E4: 0.45 | F4: 32.7 | G4: 150 | H4: 1 banane = 150g | I4: 150 | O4: Jeudi
A5: brocoli - brocoli | B5: 100 | C5: 25 | D5: 3 | E5: 0.4 | F5: 2.4 | G5: 250 | H5: 1 brocoli = 250g | I5: 250 | O5: Vendredi
A6: carrotte - carotte | B6: 100 | C6: 26.3 | D6: 0.8 | E6: 0.3 | F6: 5.1 | G6: 100 | H6: 1 carotte = 100g | I6: 100 | O6: Samedi
A7: chocolat noir - nestle dessert noir 52% | B7: 100 | C7: 549 | D7: 4.9 | E7: 34.7 | F7: 50.6 | G7: 25.6 | H7: 25,6g = 5 carrés | I7: 1 | O7: Dimanche
A8: Chocolat noir - Auchant 85% | B8: 100 | C8: 591 | D8: 8 | E8: 51.6 | F8: 16.8 | G8: 20 | H8: 1 carré = 10g | I8: 1
A9: concombre - concombre | B9: 100 | C9: 11.7 | D9: 0.7 | E9: 0.1 | F9: 2 | G9: 100 | H9: 1 concombre = 200g | I9: 200
A10: crabe - baonet crabe carrefour tendre | B10: 100 | C10: 116 | D10: 7.4 | E10: 4.3 | F10: 12 | G10: 100 | H10: 6 batonets = 100g | I10: 500
A11: haricot vert - haricot vert | B11: 100 | C11: 20.1 | D11: 1.6 | E11: 0.1 | F11: 3.2 | G11: 250 | H11: Meme quantité que les brocoli | I11: 250
A12: huile olive - carrefour bio huile dolive vierfe extra | B12: 100 | C12: 822 | D12: 0 | E12: 91 | F12: 0 | G12: - | H12: Bouteille = 1L | I12: 1000
A13: jambon - herta le bon paris a letouffee qual supp | B13: 45 | C13: 47 | D13: 9 | E13: 1.1 | F13: 0.2 | G13: 45 | H13: 1 tranche = 45g | I13: 45
A14: moutarde - Amora | B14: 100 | C14: 161 | D14: 7.9 | E14: 12 | F14: 4.4 | G14: - | H14: Pot = 200g - 1 Cuillere = 15ml | I14: 200
A15: oeuf - carrefour bio oeuf de poules | B15: 100 | C15: 142 | D15: 12.6 | E15: 9.9 | F15: 0.8 | G15: 150 | H15: 1 Oeuf = 50g | I15: 50
A16: orange jus | B16: 100 | C16: 193 | D16: 0.1 | E16: 0.01 | F16: 11 | G16: 33 | H16: 1 mog = 33cl | I16: 1000
A17: poisson cabillau - poisson cabillau | B17: 100 | C17: 78.7 | D17: 18.1 | E17: 0.7 | F17: 0 | G17: 150 | H17: - | I17: 150
A18: poisson merlan - poisson merlan | B18: 100 | C18: 79.5 | D18: 18.7 | E18: 0.3 | F18: 0.5 | G18: 150 | H18: - | I18: 150
A19: poisson saumon - poisson saumon pave | B19: 100 | C19: 179.5 | D19: 20.8 | E19: 10.7 | F19: 0 | G19: 150 | H19: - | I19: 150
A20: poisson thon - poisson thon | B20: 100 | C20: 118 | D20: 25 | E20: 2 | F20: 0 | G20: 150 | H20: - | I20: 150
A21: poisson thon boite - petit navire thon entier au naturel | B21: 100 | C21: 109 | D21: 25 | E21: 1 | F21: 0.1 | G21: 56 | H21: Boite = 56g égouté | I21: 56
A22: pomme - pomme | B22: 140 | C22: 111.16 | D22: 0.56 | E22: 0.28 | F22: 26.6 | G22: 140 | H22: 1 pomme = 140g | I22: 140
A23: poulet filet - carrefour filet de poulet france | B23: 100 | C23: 94 | D23: 20.7 | E23: 0.9 | F23: 2.2 | G23: 140 | H23: 1 filet = 140g | I23: 140
A24: poulet tranche | B24: 40 | C24: 176 | D24: 8 | E24: 0.8 | F24: 0.6 | G24: 160 | H24: 1 tranche = 40g | I24: 160
A25: salade - salade | B25: 100 | C25: 17 | D25: 0.9 | E25: 0.1 | F25: 3 | G25: 100 | H25: 1 sachet = 320g | I25: 320
A26: steak - carrefour bio bavette aloyau boeuf | B26: 100 | C26: 138 | D26: 22 | E26: 5.5 | F26: 0 | G26: 150 | H26: 1 bavette = 150g | I26: 150
A27: steak haché - carrefour bio steak haché 100% muscle | B27: 100 | C27: 185 | D27: 19 | E27: 12 | F27: 0.2 | G27: 125 | H27: 1 steak = 125g | I27: 125
A28: vinaigre - carrefour bio vinaigre balsamique de modene | B28: 100 | C28: 95 | D28: 1.2 | E28: 0 | F28: 17.8 | G28: - | H28: Bouteille = 50cl | I28: 50
A30: Crevettes cuites | B30: 100 | C30: 80 | D30: 18.1 | E30: 0.8 | F30: 0 | G30: 100 | I30: 100
A31: Epinard frais | B31: 100 | C31: 19 | D31: 2.7 | E31: 0.3 | F31: 1.3
A32: Radis | B32: 100 | C32: 18 | D32: 1 | E32: 0.2 | F32: 3
A33: Tomate cerise | B33: 100 | C33: 20 | D33: 0.8 | E33: 0.3 | F33: 3.5
A34: Ananas | B34: 100 | C34: 50 | D34: 0.5 | E34: 0 | F34: 12
A35: Chou fleur | B35: 100 | C35: 29 | D35: 2.4 | E35: 0.2 | F35: 4.5
A36: Courgette | B36: 100 | C36: 33 | D36: 1.3 | E36: 0 | F36: 6.5
A37: Artichaut cuit | B37: 100 | C37: 47 | D37: 3.3 | E37: 0.2 | F37: 11
A38: Haricot plat coupés d'aucy congelé | B38: 100 | C38: 27 | D38: 1.7 | E38: 0.1 | F38: 4.7
A39: Abricot | B39: 100 | C39: 44 | D39: 1 | E39: 0 | F39: 10
A40: Cerise | B40: 100 | C40: 77 | D40: 1 | E40: 0 | F40: 17 | G40: 8.2
A41: Melon | B41: 100 | C41: 30 | D41: 1 | E41: 0.2 | F41: 6
A42: Pastèque | B42: 100 | C42: 30 | D42: 0.4 | E42: 0 | F42: 7
A43: Framboises | B43: 100 | C43: 36 | D43: 1 | E43: 0 | F43: 8
A44: Côte de porc surgele aldi | B44: 100 | C44: 233 | D44: 17.8 | E44: 17.8 | F44: 0.3
A45: Cote de boeuf | B45: 100 | C45: 257 | D45: 17 | E45: 21 | F45: 0
A46: Rôti de porc cuit fleuri michon | B46: 100 | C46: 128 | D46: 22 | E46: 4 | F46: 1
A47: Moules marinieres surgeles | B47: 100 | C47: 98 | D47: 13.9 | E47: 3.1 | F47: 3.6
A48: Amandes | B48: 100 | C48: 578 | D48: 19 | E48: 54 | F48: 4
A49: Lait de soja Auchan | B49: 100 | C49: 41 | D49: 3.2 | E49: 1.8 | F49: 2.7
A50: Lait amande bio bjorg | B50: 100 | C50: 44 | D50: 0.8 | E50: 1.9 | F50: 5.9
A51: Baton de berger justin bridou | B51: 100 | C51: 438 | D51: 27 | E51: 36 | F51: 1
